[Event "Late-Titled-Tuesday-Blitz-September-12-2023"]
[Site "Chess.com"]
[Date "2023.09.12"]
[Round "7"]
[White "Mikasinski"]
[Black "BillieKimbah"]
[Result "0-1"]
[WhiteElo "2671"]
[BlackElo "3015"]
[TimeControl "180+1"]
[EndTime "15:14:07 PDT"]
[Termination "BillieKimbah won by resignation"]

1. e4 {[%clk 0:03:00.9]} 1... c5 {[%clk 0:02:59.2]} 2. Nf3 {[%clk 0:02:59.6]}
2... e6 {[%clk 0:02:59.6]} 3. d4 {[%clk 0:02:58.7]} 3... cxd4 {[%clk 0:03:00.5]}
4. Nxd4 {[%clk 0:02:59.3]} 4... Nc6 {[%clk 0:03:00.1]} 5. Be2 {[%clk 0:02:59]}
5... Qc7 {[%clk 0:02:58.7]} 6. O-O {[%clk 0:02:58.5]} 6... Nf6 {[%clk
0:02:57.8]} 7. Nc3 {[%clk 0:02:58.5]} 7... a6 {[%clk 0:02:57.7]} 8. Be3 {[%clk
0:02:58.9]} 8... Be7 {[%clk 0:02:56.9]} 9. f4 {[%clk 0:02:59.1]} 9... d6 {[%clk
0:02:55.6]} 10. Kh1 {[%clk 0:02:59.6]} 10... Nxd4 {[%clk 0:02:53.9]} 11. Bxd4
{[%clk 0:02:59.5]} 11... O-O {[%clk 0:02:53.3]} 12. Qe1 {[%clk 0:02:56.4]} 12...
Nd7 {[%clk 0:02:53.2]} 13. Rd1 {[%clk 0:02:49.4]} 13... b5 {[%clk 0:02:52.1]}
14. a3 {[%clk 0:02:49.3]} 14... Bb7 {[%clk 0:02:52]} 15. Bf3 {[%clk 0:02:50]}
15... Rad8 {[%clk 0:02:49.5]} 16. Qf2 {[%clk 0:02:41.9]} 16... Bf6 {[%clk
0:02:47.8]} 17. Rfe1 {[%clk 0:02:41.6]} 17... h6 {[%clk 0:02:43]} 18. Rd2 {[%clk
0:02:35.8]} 18... Bxd4 {[%clk 0:02:40]} 19. Qxd4 {[%clk 0:02:35.8]} 19... Nf6
{[%clk 0:02:37.9]} 20. Red1 {[%clk 0:02:35.4]} 20... e5 {[%clk 0:02:33.7]} 21.
Qe3 {[%clk 0:02:27.8]} 21... Rfe8 {[%clk 0:02:31.9]} 22. fxe5 {[%clk 0:02:26.2]}
22... dxe5 {[%clk 0:02:31.4]} 23. Kg1 {[%clk 0:02:22.5]} 23... Rxd2 {[%clk
0:02:20.3]} 24. Rxd2 {[%clk 0:02:23.4]} 24... Rc8 {[%clk 0:02:20.5]} 25. Kf2
{[%clk 0:02:19.2]} 25... Qc4 {[%clk 0:02:19]} 26. h3 {[%clk 0:02:15.4]} 26... a5
{[%clk 0:02:13.5]} 27. Be2 {[%clk 0:02:15.2]} 27... Nxe4+ {[%clk 0:01:33.8]} 28.
Ke1 {[%clk 0:02:11.8]} 28... Qc5 {[%clk 0:01:12.8]} 29. Qxc5 {[%clk 0:02:06.5]}
29... Rxc5 {[%clk 0:01:08.5]} 30. Rd8+ {[%clk 0:02:04.7]} 30... Kh7 {[%clk
0:01:08.8]} 31. Nxe4 {[%clk 0:01:54.6]} 31... Bxe4 {[%clk 0:01:07.6]} 32. c3
{[%clk 0:01:47.3]} 32... Bxg2 {[%clk 0:01:07.2]} 33. h4 {[%clk 0:01:45.2]} 33...
g5 {[%clk 0:01:04.6]} 34. hxg5 {[%clk 0:01:44.1]} 34... hxg5 {[%clk 0:01:05.5]}
35. Rb8 {[%clk 0:01:39.5]} 35... f5 {[%clk 0:00:59.4]} 36. Bxb5 {[%clk
0:01:38.8]} 36... g4 {[%clk 0:00:58.9]} 37. b4 {[%clk 0:01:36.3]} 37... axb4
{[%clk 0:00:58.2]} 38. cxb4 {[%clk 0:01:37]} 38... Rc1+ {[%clk 0:00:57.3]} 39.
Kd2 {[%clk 0:01:37.5]} 39... Ra1 {[%clk 0:00:57.1]} 40. a4 {[%clk 0:01:38]}
40... f4 {[%clk 0:00:56.5]} 41. Re8 {[%clk 0:01:37.4]} 41... e4 {[%clk 0:00:56]}
42. a5 {[%clk 0:01:36.4]} 42... e3+ {[%clk 0:00:56.1]} 43. Kc2 {[%clk
0:01:35.3]} 43... g3 {[%clk 0:00:44.8]} 44. Kb2 {[%clk 0:01:35.6]} 44... Rd1
{[%clk 0:00:30.3]} 45. Rf8 {[%clk 0:01:30.8]} 45... f3 {[%clk 0:00:28.8]} 46. a6
{[%clk 0:01:28.5]} 46... e2 {[%clk 0:00:26.4]} 47. Re8 {[%clk 0:00:51.5]} 47...
e1=Q {[%clk 0:00:25]} 48. Rxe1 {[%clk 0:00:51.5]} 48... Rxe1 {[%clk 0:00:25.9]}
49. Bc6 {[%clk 0:00:50.2]} 49... Re7 {[%clk 0:00:15.4]} 50. Bb7 {[%clk
0:00:47.1]} 50... Bh3 {[%clk 0:00:08.4]} 51. a7 {[%clk 0:00:42.5]} 51... Re8
{[%clk 0:00:04.9]} 52. Bxf3 {[%clk 0:00:41.2]} 52... g2 {[%clk 0:00:04.8]} 53.
Be4+ {[%clk 0:00:35.7]} 53... Kg7 {[%clk 0:00:04.5]} 0-1

[Event "Late-Titled-Tuesday-Blitz-September-12-2023"]
[Site "Chess.com"]
[Date "2023.09.12"]
[Round "7"]
[White "PepeCuenca"]
[Black "jaldjald"]
[Result "1-0"]
[WhiteElo "2729"]
[BlackElo "2367"]
[TimeControl "180+1"]
[EndTime "15:14:10 PDT"]
[Termination "PepeCuenca won on time"]

1. c4 {[%clk 0:03:00.9]} 1... e6 {[%clk 0:02:56.5]} 2. Nf3 {[%clk 0:03:00.1]}
2... d5 {[%clk 0:02:56.8]} 3. d4 {[%clk 0:03:00.7]} 3... c5 {[%clk 0:02:57]} 4.
cxd5 {[%clk 0:03:00.7]} 4... exd5 {[%clk 0:02:57.9]} 5. Nc3 {[%clk 0:02:58.7]}
5... Nc6 {[%clk 0:02:57.2]} 6. g3 {[%clk 0:02:51]} 6... Nf6 {[%clk 0:02:55.9]}
7. Bg2 {[%clk 0:02:51.3]} 7... cxd4 {[%clk 0:02:56.1]} 8. Nxd4 {[%clk
0:02:51.1]} 8... Bc5 {[%clk 0:02:56.6]} 9. Nxc6 {[%clk 0:02:50.9]} 9... bxc6
{[%clk 0:02:56.8]} 10. O-O {[%clk 0:02:51.2]} 10... O-O {[%clk 0:02:56.9]} 11.
Qc2 {[%clk 0:02:51.6]} 11... Bb6 {[%clk 0:02:57.1]} 12. Na4 {[%clk 0:02:51.7]}
12... Ba6 {[%clk 0:02:55.2]} 13. Nxb6 {[%clk 0:02:41.9]} 13... Qxb6 {[%clk
0:02:54.2]} 14. Rd1 {[%clk 0:02:19.4]} 14... Rfe8 {[%clk 0:02:44.3]} 15. e3
{[%clk 0:02:15.5]} 15... h5 {[%clk 0:02:43.7]} 16. b3 {[%clk 0:02:13.9]} 16...
Ne4 {[%clk 0:02:23.4]} 17. Bb2 {[%clk 0:02:08]} 17... h4 {[%clk 0:02:17.8]} 18.
Rac1 {[%clk 0:01:59.2]} 18... Rac8 {[%clk 0:02:17.1]} 19. gxh4 {[%clk
0:01:36.6]} 19... Qd8 {[%clk 0:02:12]} 20. f3 {[%clk 0:01:34.6]} 20... Nd6
{[%clk 0:01:54.2]} 21. Qc3 {[%clk 0:01:21.2]} 21... Nf5 {[%clk 0:01:54.1]} 22.
e4 {[%clk 0:01:19.4]} 22... d4 {[%clk 0:01:50.4]} 23. Qe1 {[%clk 0:00:58.7]}
23... c5 {[%clk 0:01:18.4]} 24. b4 {[%clk 0:00:33.5]} 24... Nxh4 {[%clk
0:01:02.4]} 25. Rxc5 {[%clk 0:00:29.9]} 25... Rxc5 {[%clk 0:00:46.6]} 26. bxc5
{[%clk 0:00:30.8]} 26... d3 {[%clk 0:00:47]} 27. Qg3 {[%clk 0:00:27.8]} 27... g6
{[%clk 0:00:41.2]} 28. c6 {[%clk 0:00:26.5]} 28... Qb6+ {[%clk 0:00:29.7]} 29.
Qf2 {[%clk 0:00:26.6]} 29... Qxf2+ {[%clk 0:00:24.9]} 30. Kxf2 {[%clk 0:00:27]}
30... Nxg2 {[%clk 0:00:25.2]} 31. Kxg2 {[%clk 0:00:26.7]} 31... Rc8 {[%clk
0:00:25.6]} 32. Rc1 {[%clk 0:00:23]} 32... d2 {[%clk 0:00:12.8]} 33. Rd1 {[%clk
0:00:22.9]} 33... Rxc6 {[%clk 0:00:12.8]} 34. Rxd2 {[%clk 0:00:23.5]} 34... Rc8
{[%clk 0:00:08.2]} 35. Bf6 {[%clk 0:00:22.2]} 35... Bc4 {[%clk 0:00:08.1]} 36.
Kg3 {[%clk 0:00:20.4]} 36... Be6 {[%clk 0:00:07.3]} 37. Kf4 {[%clk 0:00:18.2]}
37... Kf8 {[%clk 0:00:07.5]} 38. h4 {[%clk 0:00:16.1]} 38... Ke8 {[%clk
0:00:08]} 39. a3 {[%clk 0:00:15.4]} 39... a6 {[%clk 0:00:05.3]} 40. Rb2 {[%clk
0:00:12.1]} 40... Kd7 {[%clk 0:00:04]} 41. Rb7+ {[%clk 0:00:07.1]} 41... Rc7
{[%clk 0:00:03.9]} 42. Rb8 {[%clk 0:00:07.5]} 42... Rc8 {[%clk 0:00:04.1]} 43.
Rb2 {[%clk 0:00:07.2]} 43... Kc6 {[%clk 0:00:03.8]} 44. Ke5 {[%clk 0:00:06.5]}
1-0

[Event "Late-Titled-Tuesday-Blitz-September-12-2023"]
[Site "Chess.com"]
[Date "2023.09.12"]
[Round "7"]
[White "GMKrikor"]
[Black "azikom"]
[Result "1-0"]
[WhiteElo "2873"]
[BlackElo "2656"]
[TimeControl "180+1"]
[EndTime "15:14:11 PDT"]
[Termination "GMKrikor won on time"]

1. Nf3 {[%clk 0:03:00.9]} 1... Nf6 {[%clk 0:03:00.9]} 2. c4 {[%clk 0:03:00.2]}
2... e6 {[%clk 0:03:00.1]} 3. Nc3 {[%clk 0:03:00.1]} 3... d5 {[%clk 0:03:00.2]}
4. cxd5 {[%clk 0:03:01]} 4... exd5 {[%clk 0:03:00.3]} 5. d4 {[%clk 0:03:01.5]}
5... c6 {[%clk 0:03:00.4]} 6. Bf4 {[%clk 0:03:01.5]} 6... Bf5 {[%clk 0:02:57.9]}
7. e3 {[%clk 0:03:00.5]} 7... Nbd7 {[%clk 0:02:57.3]} 8. h3 {[%clk 0:03:00.4]}
8... Qb6 {[%clk 0:02:53.8]} 9. Bd3 {[%clk 0:02:58.3]} 9... Qxb2 {[%clk
0:02:38.7]} 10. Bxf5 {[%clk 0:02:57.6]} 10... Qxc3+ {[%clk 0:02:38.3]} 11. Kf1
{[%clk 0:02:58.2]} 11... Be7 {[%clk 0:02:27.7]} 12. g4 {[%clk 0:02:46.2]} 12...
Nb6 {[%clk 0:02:25.2]} 13. Kg2 {[%clk 0:02:35]} 13... O-O {[%clk 0:02:22.7]} 14.
Qb1 {[%clk 0:02:23.1]} 14... g6 {[%clk 0:02:20.7]} 15. Bd3 {[%clk 0:02:23.1]}
15... Qb4 {[%clk 0:02:13.7]} 16. Qc2 {[%clk 0:02:21.5]} 16... Qa4 {[%clk
0:02:11.3]} 17. Rhb1 {[%clk 0:02:11.5]} 17... Qxc2 {[%clk 0:02:04.4]} 18. Bxc2
{[%clk 0:02:12.4]} 18... Ne8 {[%clk 0:01:46.7]} 19. a4 {[%clk 0:02:05.3]} 19...
Nd6 {[%clk 0:01:33.3]} 20. Bxd6 {[%clk 0:01:49.6]} 20... Bxd6 {[%clk 0:01:34.2]}
21. a5 {[%clk 0:01:50.5]} 21... Nc4 {[%clk 0:01:34.2]} 22. Rxb7 {[%clk
0:01:50.5]} 22... Rfb8 {[%clk 0:01:32.5]} 23. a6 {[%clk 0:01:47.6]} 23... c5
{[%clk 0:01:10]} 24. Bb3 {[%clk 0:01:31.3]} 24... Nb6 {[%clk 0:01:07.6]} 25.
dxc5 {[%clk 0:01:28.7]} 25... Bxc5 {[%clk 0:01:07.2]} 26. Rc1 {[%clk 0:01:25.7]}
26... Bd6 {[%clk 0:01:03.3]} 27. Rc6 {[%clk 0:01:22.2]} 27... Bf8 {[%clk
0:00:39.2]} 28. Rcc7 {[%clk 0:01:11.6]} 28... Rxb7 {[%clk 0:00:38.8]} 29. Rxb7
{[%clk 0:01:02]} 29... Bc5 {[%clk 0:00:35.1]} 30. Ne5 {[%clk 0:00:55.3]} 30...
Nc4 {[%clk 0:00:23.6]} 31. Bxc4 {[%clk 0:00:15.5]} 31... dxc4 {[%clk 0:00:23.2]}
32. Nxc4 {[%clk 0:00:16.4]} 32... Rc8 {[%clk 0:00:18.7]} 33. Ne5 {[%clk
0:00:15.4]} 33... f5 {[%clk 0:00:03.6]} 34. gxf5 {[%clk 0:00:13.7]} 34... gxf5
{[%clk 0:00:03.6]} 35. Nd7 {[%clk 0:00:14.5]} 35... f4 {[%clk 0:00:02.2]} 36.
Nxc5 {[%clk 0:00:11.4]} 36... Rxc5 {[%clk 0:00:02.1]} 37. exf4 {[%clk
0:00:12.1]} 37... Ra5 {[%clk 0:00:01.9]} 38. Rxa7 {[%clk 0:00:12]} 38... Ra3
{[%clk 0:00:02.1]} 39. f5 {[%clk 0:00:11.5]} 39... h5 {[%clk 0:00:02]} 40. f6
{[%clk 0:00:11.6]} 40... h4 {[%clk 0:00:01.9]} 41. Rg7+ {[%clk 0:00:11.5]} 41...
Kf8 {[%clk 0:00:02]} 42. a7 {[%clk 0:00:12.4]} 1-0

[Event "Late-Titled-Tuesday-Blitz-September-12-2023"]
[Site "Chess.com"]
[Date "2023.09.12"]
[Round "7"]
[White "nevermind242"]
[Black "GianmarcoVaR"]
[Result "0-1"]
[WhiteElo "2363"]
[BlackElo "2632"]
[TimeControl "180+1"]
[EndTime "15:14:12 PDT"]
[Termination "GianmarcoVaR won by checkmate"]

1. Nf3 {[%clk 0:02:51.9]} 1... Nf6 {[%clk 0:02:58.8]} 2. g3 {[%clk 0:02:51.6]}
2... d5 {[%clk 0:02:39.8]} 3. Bg2 {[%clk 0:02:51.6]} 3... c6 {[%clk 0:02:32.5]}
4. c4 {[%clk 0:02:51.5]} 4... dxc4 {[%clk 0:02:13.4]} 5. O-O {[%clk 0:02:50.5]}
5... g6 {[%clk 0:02:05.6]} 6. Na3 {[%clk 0:02:49.7]} 6... Bg7 {[%clk 0:02:01.6]}
7. Nxc4 {[%clk 0:02:25.5]} 7... O-O {[%clk 0:01:59.1]} 8. d3 {[%clk 0:02:23.8]}
8... Nbd7 {[%clk 0:01:21.3]} 9. Qc2 {[%clk 0:02:23.2]} 9... Nb6 {[%clk
0:01:17.7]} 10. e4 {[%clk 0:02:17.9]} 10... Be6 {[%clk 0:01:13.4]} 11. Rd1
{[%clk 0:02:13]} 11... Nxc4 {[%clk 0:01:04.2]} 12. dxc4 {[%clk 0:02:13]} 12...
Qc8 {[%clk 0:01:04.9]} 13. Rb1 {[%clk 0:02:05.1]} 13... Nxe4 {[%clk 0:01:02.1]}
14. Qxe4 {[%clk 0:01:54.4]} 14... Bf5 {[%clk 0:01:02.1]} 15. Qh4 {[%clk
0:01:52.9]} 15... Bxb1 {[%clk 0:00:59.3]} 16. Bh6 {[%clk 0:01:49.9]} 16... g5
{[%clk 0:00:17.3]} 17. Qxg5 {[%clk 0:01:20.1]} 17... Bg6 {[%clk 0:00:17]} 18.
Bxg7 {[%clk 0:01:20.8]} 18... Kxg7 {[%clk 0:00:17.1]} 19. Qxe7 {[%clk
0:01:21.4]} 19... Re8 {[%clk 0:00:16.3]} 20. Qg5 {[%clk 0:01:16.1]} 20... Qf5
{[%clk 0:00:15.7]} 21. Qc1 {[%clk 0:01:08.8]} 21... Rad8 {[%clk 0:00:13.2]} 22.
Rf1 {[%clk 0:00:52.5]} 22... Qf6 {[%clk 0:00:06.9]} 23. Nh4 {[%clk 0:00:48.5]}
23... Re7 {[%clk 0:00:04.6]} 24. f4 {[%clk 0:00:44.9]} 24... Bd3 {[%clk
0:00:04.2]} 25. Rd1 {[%clk 0:00:43]} 25... Red7 {[%clk 0:00:02.3]} 26. Nf3
{[%clk 0:00:39.3]} 26... Be4 {[%clk 0:00:02.2]} 27. Rxd7 {[%clk 0:00:22.5]}
27... Rxd7 {[%clk 0:00:03.1]} 28. Ne5 {[%clk 0:00:23]} 28... Rd4 {[%clk
0:00:03.5]} 29. Qe3 {[%clk 0:00:19.9]} 29... Rd1+ {[%clk 0:00:03.6]} 30. Kf2
{[%clk 0:00:20.4]} 30... Bxg2 {[%clk 0:00:04.2]} 31. Kxg2 {[%clk 0:00:20.7]}
31... Qf5 {[%clk 0:00:03.8]} 32. Qc3 {[%clk 0:00:15.6]} 32... Kg8 {[%clk
0:00:02.7]} 33. Nf3 {[%clk 0:00:12.4]} 33... Rd3 {[%clk 0:00:03]} 34. Qe1 {[%clk
0:00:12.4]} 34... Qe6 {[%clk 0:00:02.4]} 35. Qf1 {[%clk 0:00:11]} 35... Qe4
{[%clk 0:00:02.3]} 36. Qf2 {[%clk 0:00:10.3]} 36... Re3 {[%clk 0:00:02.7]} 37.
Kh3 {[%clk 0:00:05.5]} 37... Rxf3 {[%clk 0:00:02.7]} 38. Qd2 {[%clk 0:00:06.2]}
38... Rd3 {[%clk 0:00:02.7]} 39. Qf2 {[%clk 0:00:05.2]} 39... Rd6 {[%clk
0:00:03.2]} 40. g4 {[%clk 0:00:03.9]} 40... Rh6+ {[%clk 0:00:03.2]} 41. Kg3
{[%clk 0:00:04.6]} 41... Rd6 {[%clk 0:00:03.2]} 42. Qc5 {[%clk 0:00:04.8]} 42...
Rd3+ {[%clk 0:00:03.1]} 43. Kh4 {[%clk 0:00:05.5]} 43... Qxf4 {[%clk 0:00:02.1]}
44. Qh5 {[%clk 0:00:05.4]} 44... h6 {[%clk 0:00:02.2]} 45. Qc5 {[%clk
0:00:03.2]} 45... Qxh2# {[%clk 0:00:02.6]} 0-1

[Event "Late-Titled-Tuesday-Blitz-September-12-2023"]
[Site "Chess.com"]
[Date "2023.09.12"]
[Round "7"]
[White "artin10862"]
[Black "Njal28"]
[Result "1-0"]
[WhiteElo "2969"]
[BlackElo "3103"]
[TimeControl "180+1"]
[EndTime "15:14:14 PDT"]
[Termination "artin10862 won on time"]

1. Nf3 {[%clk 0:03:00.9]} 1... d5 {[%clk 0:02:59]} 2. d4 {[%clk 0:03:00.8]} 2...
Nf6 {[%clk 0:02:59.1]} 3. c4 {[%clk 0:03:00.7]} 3... e6 {[%clk 0:02:59]} 4. Nc3
{[%clk 0:03:00.6]} 4... Nbd7 {[%clk 0:02:58.7]} 5. cxd5 {[%clk 0:02:59.8]} 5...
exd5 {[%clk 0:02:59.1]} 6. Bg5 {[%clk 0:02:59.9]} 6... Bb4 {[%clk 0:02:57.9]} 7.
Nd2 {[%clk 0:02:50.7]} 7... c6 {[%clk 0:02:55.4]} 8. e3 {[%clk 0:02:49.2]} 8...
Nf8 {[%clk 0:02:55.8]} 9. Bd3 {[%clk 0:02:36.8]} 9... Ng6 {[%clk 0:02:52.1]} 10.
O-O {[%clk 0:02:21.4]} 10... O-O {[%clk 0:02:45.2]} 11. Qf3 {[%clk 0:02:15.9]}
11... Be7 {[%clk 0:02:36.4]} 12. Bf5 {[%clk 0:02:08.3]} 12... h6 {[%clk
0:01:52.9]} 13. Bxf6 {[%clk 0:01:55.5]} 13... Bxf6 {[%clk 0:01:53.8]} 14. Bxc8
{[%clk 0:01:55.3]} 14... Qxc8 {[%clk 0:01:50.4]} 15. Rac1 {[%clk 0:01:53]} 15...
Qe6 {[%clk 0:01:43.1]} 16. b4 {[%clk 0:01:51.8]} 16... Nh4 {[%clk 0:01:36.7]}
17. Qe2 {[%clk 0:01:50.8]} 17... Rfe8 {[%clk 0:01:32.5]} 18. Rfe1 {[%clk
0:01:47.1]} 18... Nf5 {[%clk 0:01:31.6]} 19. Nb3 {[%clk 0:01:25]} 19... b5
{[%clk 0:01:08]} 20. a4 {[%clk 0:01:12.2]} 20... a6 {[%clk 0:01:07.7]} 21. Nc5
{[%clk 0:01:12.1]} 21... Qe7 {[%clk 0:01:06.9]} 22. Qd2 {[%clk 0:00:45.7]} 22...
Nd6 {[%clk 0:01:02.9]} 23. g3 {[%clk 0:00:44.3]} 23... Nc4 {[%clk 0:01:00.9]}
24. Qd3 {[%clk 0:00:44.6]} 24... Qd6 {[%clk 0:00:47.5]} 25. Kg2 {[%clk
0:00:39.3]} 25... Re7 {[%clk 0:00:18.5]} 26. e4 {[%clk 0:00:18.3]} 26... dxe4
{[%clk 0:00:18.6]} 27. N3xe4 {[%clk 0:00:18.5]} 27... Qd5 {[%clk 0:00:15.8]} 28.
Qf3 {[%clk 0:00:12.9]} 28... Bxd4 {[%clk 0:00:13]} 29. Rcd1 {[%clk 0:00:11.7]}
29... Rae8 {[%clk 0:00:11]} 30. Nf6+ {[%clk 0:00:08.9]} 30... gxf6 {[%clk
0:00:08.8]} 31. Qxd5 {[%clk 0:00:05.8]} 31... cxd5 {[%clk 0:00:09.7]} 32. Rxe7
{[%clk 0:00:06]} 32... Rxe7 {[%clk 0:00:10.2]} 33. Rxd4 {[%clk 0:00:06.9]} 33...
bxa4 {[%clk 0:00:06.8]} 34. Nxa4 {[%clk 0:00:06.7]} 34... Rb7 {[%clk 0:00:04.1]}
35. Nc5 {[%clk 0:00:04.7]} 35... Rxb4 {[%clk 0:00:04.2]} 36. Nxa6 {[%clk
0:00:05.1]} 36... Rb2 {[%clk 0:00:03.4]} 37. Nc7 {[%clk 0:00:04.9]} 37... Ne3+
{[%clk 0:00:03.2]} 38. Kf3 {[%clk 0:00:05.3]} 38... Nf5 {[%clk 0:00:02.6]} 39.
Rxd5 {[%clk 0:00:04.7]} 39... Ne7 {[%clk 0:00:02.3]} 40. Rd8+ {[%clk 0:00:05.1]}
40... Kg7 {[%clk 0:00:02.9]} 41. Ne8+ {[%clk 0:00:05.8]} 41... Kg6 {[%clk
0:00:03.4]} 42. Nd6 {[%clk 0:00:06.4]} 42... Rb3+ {[%clk 0:00:03.6]} 43. Kg2
{[%clk 0:00:06.5]} 43... Kg7 {[%clk 0:00:02.7]} 44. Ne8+ {[%clk 0:00:06.3]}
44... Kg6 {[%clk 0:00:03]} 45. Rd6 {[%clk 0:00:07]} 45... Ng8 {[%clk 0:00:00.6]}
46. Nc7 {[%clk 0:00:07.2]} 1-0

[Event "Late-Titled-Tuesday-Blitz-September-12-2023"]
[Site "Chess.com"]
[Date "2023.09.12"]
[Round "7"]
[White "GAO"]
[Black "Ducke13"]
[Result "0-1"]
[WhiteElo "2346"]
[BlackElo "2511"]
[TimeControl "180+1"]
[EndTime "15:14:26 PDT"]
[Termination "Ducke13 won on time"]

1. Nf3 {[%clk 0:03:00.9]} 1... Nf6 {[%clk 0:02:57.9]} 2. d4 {[%clk 0:02:52]}
2... g6 {[%clk 0:02:56.2]} 3. c4 {[%clk 0:02:51.4]} 3... Bg7 {[%clk 0:02:56.6]}
4. Nc3 {[%clk 0:02:51.9]} 4... d5 {[%clk 0:02:52.3]} 5. cxd5 {[%clk 0:02:48]}
5... Nxd5 {[%clk 0:02:52.2]} 6. e3 {[%clk 0:02:48.6]} 6... O-O {[%clk
0:02:51.3]} 7. Bc4 {[%clk 0:02:48.2]} 7... Nxc3 {[%clk 0:02:44]} 8. bxc3 {[%clk
0:02:48.1]} 8... c5 {[%clk 0:02:44.9]} 9. O-O {[%clk 0:02:47.8]} 9... Qc7 {[%clk
0:02:42.4]} 10. Be2 {[%clk 0:02:43.9]} 10... Nc6 {[%clk 0:02:41.8]} 11. Ba3
{[%clk 0:02:43.4]} 11... b6 {[%clk 0:02:40.2]} 12. dxc5 {[%clk 0:02:36.5]} 12...
Bb7 {[%clk 0:02:40.1]} 13. Nd4 {[%clk 0:02:25.9]} 13... Ne5 {[%clk 0:02:30.9]}
14. cxb6 {[%clk 0:02:23.6]} 14... axb6 {[%clk 0:02:30.4]} 15. Bb4 {[%clk
0:02:10.4]} 15... Rfd8 {[%clk 0:02:29.6]} 16. Qb3 {[%clk 0:02:07.5]} 16... Bd5
{[%clk 0:01:58.8]} 17. Qb2 {[%clk 0:02:05.8]} 17... Nc4 {[%clk 0:01:53.9]} 18.
Bxc4 {[%clk 0:02:04.1]} 18... Bxc4 {[%clk 0:01:54.8]} 19. Rfd1 {[%clk
0:02:03.7]} 19... b5 {[%clk 0:01:49.7]} 20. a3 {[%clk 0:01:48.9]} 20... h5
{[%clk 0:01:42.4]} 21. Rd2 {[%clk 0:01:47.5]} 21... e5 {[%clk 0:01:33.9]} 22.
Nf3 {[%clk 0:01:37.9]} 22... Rxd2 {[%clk 0:01:32.7]} 23. Nxd2 {[%clk 0:01:36.4]}
23... Rd8 {[%clk 0:01:18]} 24. Nxc4 {[%clk 0:01:35.2]} 24... Qxc4 {[%clk
0:01:18.9]} 25. g3 {[%clk 0:01:24.2]} 25... h4 {[%clk 0:01:16]} 26. gxh4 {[%clk
0:01:16.1]} 26... Rd3 {[%clk 0:01:13.2]} 27. Qe2 {[%clk 0:01:03.8]} 27... e4
{[%clk 0:00:56.9]} 28. Rd1 {[%clk 0:00:52.3]} 28... Qd5 {[%clk 0:00:48]} 29.
Rxd3 {[%clk 0:00:18.4]} 29... exd3 {[%clk 0:00:48.9]} 30. Qd1 {[%clk 0:00:18.5]}
30... Bf6 {[%clk 0:00:40.4]} 31. h5 {[%clk 0:00:17.1]} 31... gxh5 {[%clk
0:00:39.8]} 32. Ba5 {[%clk 0:00:13.1]} 32... d2 {[%clk 0:00:24.6]} 33. c4 {[%clk
0:00:12.8]} 33... bxc4 {[%clk 0:00:07.4]} 34. Qxd2 {[%clk 0:00:13]} 34... Qxd2
{[%clk 0:00:03.9]} 35. Bxd2 {[%clk 0:00:13.9]} 35... Bb2 {[%clk 0:00:02.8]} 36.
Kf1 {[%clk 0:00:06.5]} 36... c3 {[%clk 0:00:03.4]} 37. Bxc3 {[%clk 0:00:06.3]}
37... Bxc3 {[%clk 0:00:02.7]} 38. Ke2 {[%clk 0:00:06.7]} 38... Kg7 {[%clk
0:00:02.5]} 39. Kd3 {[%clk 0:00:06.7]} 39... Be1 {[%clk 0:00:02.3]} 40. Ke2
{[%clk 0:00:06.5]} 40... Ba5 {[%clk 0:00:01.8]} 41. f4 {[%clk 0:00:05.7]} 41...
Kf6 {[%clk 0:00:02.7]} 42. e4 {[%clk 0:00:06]} 42... Ke6 {[%clk 0:00:03.1]} 43.
Kf3 {[%clk 0:00:06.1]} 43... Kd6 {[%clk 0:00:03.2]} 44. Ke3 {[%clk 0:00:06.5]}
44... Kc5 {[%clk 0:00:03.6]} 45. e5 {[%clk 0:00:06.3]} 45... Kd5 {[%clk
0:00:03.8]} 46. Kd3 {[%clk 0:00:04.9]} 46... Bb6 {[%clk 0:00:03.5]} 47. h3
{[%clk 0:00:04]} 47... Ke6 {[%clk 0:00:03.4]} 48. Ke4 {[%clk 0:00:04.1]} 48...
Ba5 {[%clk 0:00:02.6]} 49. f5+ {[%clk 0:00:04.3]} 49... Ke7 {[%clk 0:00:02.4]}
50. Kd5 {[%clk 0:00:03.4]} 50... Be1 {[%clk 0:00:02.4]} 51. a4 {[%clk
0:00:02.8]} 51... Bd2 {[%clk 0:00:02.3]} 0-1